bitfinex-derivatives/quotes_ETHF0:USTF0_20210403
["timestamp","ask_amount","ask_price","bid_price","bid_amount"]
[1617463412654,2.90695,2087.1,2087.0,2.90695]
[1617463413555,2.90695,2087.1,2086.3,4.99489741]
[1617463413955,2.571,2087.9,2086.7,2.90695]
[1617463414155,2.571,2087.9,2086.7,4.62215]
[1617463415960,2.90695,2086.8,2086.7,4.62215]
[1617463417566,2.571,2087.9,2086.7,4.62215]
[1617463418066,2.571,2087.9,2087.1,2.90695]
[1617463419967,2.571,2087.9,2087.0,4.99848715]
[1617463419968,2.571,2087.9,2087.8,2.90695]
[1617463420168,2.571,2087.9,2087.8,4.76635]
[1617463421368,2.571,2087.9,2087.8,1.8594]
[1617463421968,5.47795,2087.9,2087.8,1.8594]
[1617463422371,2.90695,2087.9,2087.8,1.8594]
[1617463424672,2.90695,2087.9,2087.5,2.90695]
[1617463426174,2.90695,2087.6,2087.5,2.90695]
[1617463428878,2.90695,2087.6,2086.8,5.95850496]
[1617463429079,2.90695,2087.6,2086.8,0.9627]
[1617463430180,1.6529,2088.2,2087.2,2.90695]
[1617463430380,32.0,2089.0,2087.2,2.90695]
[1617463432282,2.90695,2087.3,2087.2,2.90695]
[1617463435083,32.0,2089.0,2087.2,2.90695]
[1617463435586,32.0,2089.0,2086.8,2.544]
[1617463436086,32.0,2089.0,2087.3,2.90695]
[1617463436286,32.0,2089.0,2087.3,5.01435]
[1617463438088,2.90695,2087.4,2087.3,5.01435]
[1617463438289,2.90695,2087.4,2087.3,2.1074]
[1617463438491,2.90695,2087.4,2086.9,5.00725975]
[1617463439791,2.90695,2087.4,2086.8,5.97035089]
[1617463439994,2.90695,2087.4,2086.8,5.00765089]
[1617463440195,2.90695,2086.9,2086.7,7.9146859]
[1617463440596,2.90695,2086.9,2086.7,2.90695]
[1617463440895,5.11075,2086.9,2086.7,2.90695]
[1617463442298,5.11075,2086.9,2086.3,5.00833971]
[1617463442498,5.11075,2086.9,2086.2,5.00888118]
[1617463442901,5.11075,2086.9,2084.7,9.46122]
[1617463442902,5.11075,2086.9,2085.9,5.00927887]
[1617463444098,2.2038,2086.9,2086.3,2.90695]
[1617463444499,2.0,2087.3,2086.3,2.90695]
[1617463445300,2.0,2087.3,2085.6,7.24080504]
[1617463445301,2.0,2087.3,1245.4,2.25350145]
[1617463445502,33.6878,2087.2,2086.3,5.01277986]
[1617463445700,33.6878,2087.2,2086.1,4.0891108]
[1617463446002,78.2037,2086.5,2084.4,0.9597]
[1617463446201,78.2037,2086.5,2084.9,2.90695]
[1617463447804,78.2037,2086.5,2084.9,4.70705]
[1617463448206,78.2037,2086.5,2085.3,2.90695]
[1617463448406,76.5133,2086.5,2085.3,2.90695]
[1617463450211,2.90695,2085.4,2085.3,2.90695]
[1617463452513,1.96655,2085.4,2085.3,2.90695]
[1617463452712,76.5133,2086.5,2085.3,2.90695]
[1617463454216,2.90695,2085.4,2085.3,2.90695]
[1617463454414,2.90695,2085.4,2084.9,1.8001]
[1617463454814,2.90695,2085.4,2084.4,0.9597]
[1617463455315,32.0035,2086.9,2084.5,0.15885833]
[1617463455515,88.1711,2086.9,2084.5,0.15885833]
[1617463455915,58.1711,2086.9,2085.4,5.01251846]
[1617463456315,58.1711,2086.9,2085.7,2.90695]
[1617463456516,2.0,2086.8,2085.7,2.90695]
[1617463456720,2.571,2086.8,2085.7,2.90695]
[1617463457021,2.571,2086.8,2085.7,3.85275]
[1617463457723,2.571,2086.8,2085.7,8.86461052]
[1617463458323,5.47795,2086.8,2086.3,0.9445]
[1617463458522,5.47795,2086.8,2086.7,2.0238]
[1617463459625,2.571,2086.8,2086.7,2.0238]
[1617463460221,2.571,2086.8,2086.7,9.94084767]
[1617463461223,2.571,2086.8,2086.7,5.09043576]
[1617463461422,2.90695,2087.1,2086.7,5.09043576]
[1617463461923,2.90695,2087.1,2087.0,5.00989144]
[1617463462327,2.90695,2087.1,2087.0,2.90695]
[1617463462523,2.90695,2087.1,2087.0,3.06662721]
[1617463462724,2.90695,2087.1,2087.0,8.07654796]
[1617463462926,2.90695,2087.1,2087.0,9.18962315]
[1617463463826,2.85285,2087.1,2087.0,3.06662721]
[1617463464427,2.571,2088.5,2087.0,3.06662721]
[1617463464828,2.571,2088.5,2087.1,0.1596047]
[1617463465128,2.571,2088.5,2087.6,5.00888522]
[1617463465329,2.571,2088.5,2087.6,7.31138522]
[1617463465529,2.571,2088.5,2087.7,0.1595721]
[1617463465730,2.571,2088.5,2087.7,5.16817497]
[1617463466132,2.571,2088.5,2087.8,5.16820111]
[1617463466331,2.571,2088.5,2088.2,2.90695]
[1617463466531,2.571,2088.5,2088.2,5.12265]
[1617463468332,2.90695,2088.3,2088.2,5.12265]
[1617463468734,2.90695,2088.3,2088.2,5.28218813]
[1617463469133,2.90695,2088.3,2088.2,2.37523813]
[1617463469534,2.90695,2088.3,2088.2,2.2157]
[1617463471637,2.90695,2088.3,2087.8,2.90695]
[1617463472038,2.90695,2088.3,2087.9,0.15933176]
[1617463472539,2.90695,2088.0,2087.8,2.90695]
[1617463479047,1.00025,2088.0,2087.8,2.90695]
[1617463479247,5.098,2088.6,2087.8,4.88545]
[1617463479951,5.098,2088.6,2088.0,5.0139404]
[1617463480454,5.098,2088.6,2088.5,2.90695]
[1617463481853,5.098,2088.6,2088.3,1.5413]
[1617463482353,2.90695,2088.4,2088.3,1.5413]
[1617463482853,2.90695,2088.4,2087.9,2.90695]
[1617463484455,2.90695,2088.0,2087.9,2.90695]
[1617463486457,2.90695,2088.0,2087.1,5.01090512]
[1617463487557,55.8249,2087.8,2087.0,5.01123262]
[1617463487956,55.8249,2087.8,2086.8,6.12483987]
[1617463487957,58.2628,2087.8,2086.8,5.01195516]
[1617463488155,60.2628,2087.8,2086.8,5.01195516]
[1617463488355,60.2628,2087.8,2085.7,0.9458]
[1617463488356,60.2628,2087.8,2086.7,2.90695]
[1617463488555,60.2628,2087.8,2086.5,5.01221583]
[1617463488957,58.2628,2087.8,2086.5,5.01221583]
[1617463489156,58.2628,2087.8,2086.6,5.01224612]
[1617463490157,58.2628,2087.8,2086.7,5.01206256]
[1617463490557,2.90695,2086.8,2086.7,5.01206256]
[1617463490857,2.90695,2086.8,2086.6,5.01242028]
[1617463491258,2.90695,2086.8,2086.6,6.1425396]
[1617463491757,2.90695,2086.8,2086.7,5.02584476]
[1617463492558,2.90695,2086.8,2086.7,7.93279476]
[1617463493059,2.90695,2086.8,2086.7,2.90695]
[1617463493862,2.90695,2086.8,2086.7,7.93346571]
[1617463494663,2.90695,2086.8,2086.7,5.02651571]
[1617463495163,2.90695,2086.8,2086.6,5.02685864]
[1617463496263,2.90695,2086.8,2086.5,5.02704612]
[1617463496465,2.90695,2086.8,2086.5,7.93399612]
[1617463496964,2.90695,2086.8,2086.6,5.02691783]
[1617463497966,2.90695,2086.8,2086.7,5.02677386]
[1617463500670,2.90695,2086.8,2086.6,5.02684136]
[1617463502274,5.01875,2086.8,2086.6,5.02684136]
[1617463502673,5.01875,2086.8,2086.3,5.02474122]
[1617463502874,5.01875,2086.8,2086.2,5.02478373]
[1617463503073,2.0,2086.7,2086.2,5.02478373]
[1617463504076,2.0,2086.7,2086.1,2.90695]
[1617463504579,2.90695,2086.3,2086.2,5.02227977]
[1617463505179,2.90695,2086.3,2086.1,2.90695]
[1617463505180,2.90695,2086.3,2086.1,7.92925545]
[1617463505878,2.90695,2086.3,2086.2,5.0221285]
[1617463506481,2.90695,2086.3,2086.1,7.92945685]
[1617463507783,2.90695,2086.3,2086.1,2.90695]
[1617463508584,4.90695,2086.3,2086.1,2.90695]
[1617463510085,4.90695,2086.3,2085.8,5.02292686]
[1617463510585,2.90695,2085.9,2085.7,5.0232611]
[1617463510785,2.90695,2085.9,2085.6,5.02360229]
[1617463510786,4.85865,2085.9,2085.6,5.02360229]
[1617463511186,4.85865,2085.9,2085.4,5.02397239]
[1617463511887,2.0,2085.8,2085.4,5.02397239]
[1617463512387,4.85865,2085.9,2085.4,5.02397239]
[1617463512588,2.90695,2085.5,2085.4,5.02397239]
[1617463513389,2.90695,2085.5,2085.2,2.90695]
[1617463525707,2.571,2086.2,2085.2,2.90695]
[1617463525907,2.571,2086.2,2085.2,4.93835]
[1617463526608,2.571,2086.2,2086.1,2.90695]
[1617463526809,2.571,2086.2,2086.1,4.68095]
[1617463532418,2.90695,2086.7,2086.1,4.68095]
[1617463532619,2.90695,2086.7,2086.6,2.90695]
[1617463532819,2.90695,2086.7,2086.6,4.62485]
[1617463533219,7.669,2087.2,2086.6,4.62485]
[1617463534320,7.669,2087.2,2086.6,2.90695]
[1617463534620,10.57595,2087.2,2087.0,2.90695]
[1617463535922,12.16845,2087.2,2085.6,5.96626033]
[1617463536222,12.16845,2087.2,2085.8,5.00824833]
[1617463536722,9.2615,2087.2,2086.6,2.90695]
[1617463538623,2.90695,2086.7,2086.6,2.90695]
[1617463541425,2.90695,2086.7,2086.6,3.06667679]
[1617463546333,2.571,2087.2,2086.6,3.06667679]
[1617463546533,4.571,2088.2,2086.6,3.06667679]
[1617463546832,2.90695,2087.3,2087.2,2.90695]
[1617463547232,2.90695,2087.3,2086.6,5.00801295]
[1617463547435,2.90695,2087.3,2086.7,5.0116546]
[1617463547633,2.90695,2087.3,2086.7,5.17121046]
[1617463547835,2.90695,2087.3,2086.8,0.15951435]
[1617463548737,2.0,2088.0,2087.1,2.90695]
[1617463550336,2.0,2088.1,2087.1,2.90695]
[1617463550538,2.0,2087.9,2087.1,2.90695]
[1617463550839,108.29325,2087.2,2086.6,5.00831225]
[1617463551037,110.52975,2087.2,2086.6,5.00831225]
[1617463551239,110.52975,2087.2,2086.2,5.0094767]
[1617463551638,110.52975,2087.2,2084.7,9.46234488]
[1617463551639,110.52975,2087.2,2086.3,0.15982082]
[1617463552041,110.52975,2087.2,2086.2,0.15983419]
[1617463552339,110.52975,2087.2,2085.9,5.01012485]
[1617463552741,2.90695,2086.0,2085.8,5.01047366]
[1617463553038,5.18785,2086.0,2085.7,5.01053198]
[1617463553238,5.18785,2086.0,2085.9,0.1598548]
[1617463553638,5.18785,2086.0,2085.8,0.15985228]
[1617463553841,5.18785,2086.0,2085.9,0.15985281]
[1617463554139,5.18785,2086.0,2085.8,0.15985104]
[1617463557643,2.90695,2086.0,2085.8,0.15985104]
[1617463557842,2.90695,2086.0,2085.8,5.17033682]
[1617463558243,2.90695,2086.0,2085.9,0.15976765]
[1617463558845,2.90695,2086.0,2085.9,3.06671765]
[1617463559247,2.90695,2086.0,2085.9,8.07824043]
[1617463559546,2.90695,2086.0,2085.9,9.19822237]
[1617463559947,2.90695,2086.0,2085.9,3.06671765]
[1617463560549,2.90695,2086.0,2085.9,9.19835586]
[1617463562052,2.90695,2086.0,2085.9,6.29140586]
[1617463562853,2.90695,2086.0,2085.9,9.19835586]
[1617463563154,2.90695,2086.0,2085.9,3.06671765]
[1617463563557,2.90695,2086.0,2085.9,9.19838164]
[1617463563754,2.90695,2086.0,2085.9,6.29143164]
[1617463563955,2.90695,2086.0,2085.9,0.15976765]
[1617463564958,2.90695,2086.0,2085.9,5.17694634]
[1617463567961,2.90695,2086.0,2085.9,5.01717869]
[1617463568162,5.32645,2086.0,2085.9,5.17584558]
[1617463571572,5.32645,2086.0,2085.9,7.43660718]
[1617463572672,5.32645,2086.0,2085.9,0.15866689]
[1617463572972,5.32645,2086.0,2085.8,7.27834533]
[1617463573172,2.90695,2086.0,2085.8,7.27834533]
[1617463573373,2.90695,2086.0,2085.9,0.1593232]
[1617463573675,2.90695,2086.0,2085.9,7.43723597]
[1617463574477,2.90695,2086.0,2085.9,0.1593232]
[1617463574977,2.90695,2086.0,2085.8,2.90695]
[1617463575277,2.90695,2086.0,2085.9,0.15944275]
[1617463576579,2.90695,2086.0,2085.9,7.43730369]
[1617463577579,2.90695,2086.0,2085.9,0.15944275]
[1617463578779,2.90695,2086.0,2085.9,7.43729061]
[1617463579584,2.90695,2086.0,2085.9,0.15944275]
[1617463590494,2.90695,2086.0,2085.8,0.16019882]
[1617463595101,2.90695,2086.0,2085.8,3.06714882]
[1617463595502,2.90695,2086.0,2085.8,2.90695]
[1617463595903,2.90695,2086.0,2085.9,0.16024538]
[1617463598604,2.90695,2086.0,2085.7,0.16037816]
[1617463598905,2.90695,2086.0,2085.9,0.16037671]
[1617463599105,2.90695,2086.0,2085.6,3.06732785]
[1617463599606,2.90695,2086.0,2085.7,0.16037563]
[1617463601910,2.90695,2086.0,2085.7,2.43527563]
[1617463602210,2.90695,2086.0,2085.7,10.83680128]
[1617463602411,2.90695,2086.0,2085.8,0.16034928]
[1617463603317,2.90695,2086.0,2085.8,8.56450433]
[1617463603713,2.90695,2086.0,2085.9,0.16043498]
[1617463604316,2.90695,2086.0,2085.8,0.16043367]
[1617463604615,2.90695,2086.0,2085.8,8.56458225]
[1617463605118,2.90695,2086.0,2085.9,0.16045218]
[1617463605518,2.90695,2086.0,2085.8,0.16045621]
[1617463605918,2.90695,2086.0,2085.7,0.16045945]
[1617463606318,2.90695,2086.0,2085.9,0.16046193]
[1617463606521,2.90695,2086.0,2085.8,0.16046022]
[1617463606721,2.90695,2086.0,2085.9,0.16045903]
[1617463607322,2.90695,2086.0,2085.9,0.1611278]
[1617463607720,2.90695,2086.0,2085.7,8.56547291]
[1617463608120,2.90695,2086.0,2085.8,0.1611142]
[1617463609923,2.90695,2086.0,2085.7,0.16113503]
[1617463610825,30.0,2085.9,2085.7,0.16113503]
[1617463611026,31.9372,2085.9,2085.7,0.16113503]
[1617463611629,31.9372,2085.9,2085.6,0.16116698]
[1617463611828,31.9372,2085.9,2085.8,0.16116644]
[1617463612127,31.9372,2085.9,2085.6,0.16116728]
[1617463612531,31.9372,2085.9,2085.8,7.28467298]
[1617463612830,31.9372,2085.9,2085.8,7.44583975]
[1617463614530,31.9372,2085.9,2085.8,0.16116677]
[1617463615431,31.9372,2085.9,2085.7,0.16088208]
[1617463616032,31.9372,2085.9,2085.7,6.32325398]
[1617463616233,31.9372,2085.9,2085.7,6.1623719]
[1617463616432,2.0,2085.8,2085.7,6.1623719]
[1617463616732,32.0,2085.8,2085.7,6.1623719]
[1617463616934,32.0,2085.8,2085.7,6.32329773]
[1617463617334,32.0,2085.8,2085.7,0.16092583]
[1617463617534,30.0,2085.8,2085.7,0.16092583]
[1617463617933,30.0,2085.8,2085.5,0.16090337]
[1617463618133,30.0,2085.8,2085.7,0.16087723]
[1617463618633,30.0,2085.8,2085.6,0.16088121]
[1617463618935,30.0,2085.8,2085.7,0.16087951]
[1617463619433,30.0,2085.8,2085.5,7.44380824]
[1617463619733,30.0,2085.9,2085.6,0.16088307]
[1617463620033,30.0,2085.9,2085.5,0.16088728]
[1617463620434,30.0,2085.9,2085.8,6.16251908]
[1617463620734,30.0,2085.9,2085.8,6.3233997]
[1617463621134,32.0,2085.9,2085.8,0.16088062]
[1617463621336,30.0,2085.9,2085.5,0.16094621]
[1617463621540,30.0,2085.9,2085.7,6.16263401]
[1617463622238,30.0,2085.9,2085.8,6.16263425]
[1617463622641,30.0,2085.9,2085.7,6.16263888]
[1617463622938,30.0,2085.9,2085.8,6.16261279]
[1617463623239,30.0,2085.9,2085.7,6.16262417]
[1617463623639,30.0,2085.9,2085.8,6.16264521]
[1617463625041,30.0,2085.9,2085.8,6.32359262]
[1617463625340,30.0,2085.9,2085.8,6.16264521]
[1617463625541,30.0,2085.9,2085.7,6.16261076]
[1617463625740,30.0,2085.9,2085.8,0.16093769]
[1617463625942,30.0,2085.9,2085.8,6.16258724]
[1617463626444,30.0,2085.9,2085.0,8.40352806]
[1617463626644,4.90695,2086.0,2085.0,8.40352806]
[1617463626847,4.90695,2086.0,2085.5,7.28258866]
[1617463627144,34.90695,2086.0,2085.6,0.16071353]
[1617463627345,32.0,2086.0,2085.6,7.44367618]
[1617463627545,32.9688,2086.0,2085.8,6.16276566]
[1617463627744,32.0,2086.0,2085.8,6.16276566]
[1617463627944,32.0,2086.0,2085.9,5.04230082]
[1617463629245,34.90695,2086.0,2085.9,5.04230082]
[1617463630046,35.85865,2086.0,2085.9,5.04230082]
[1617463630448,35.85865,2086.0,2085.6,6.16306515]
[1617463630648,37.49425,2086.0,2085.6,6.16306515]
[1617463631148,37.49425,2086.0,2085.5,6.1634104]
[1617463631349,2.90695,2085.7,2085.5,6.1634104]
[1617463632050,2.90695,2085.7,2085.6,6.16335841]
[1617463632247,32.90695,2085.7,2085.6,6.16335841]
[1617463632950,32.90695,2085.7,2085.5,6.16343663]
[1617463633147,34.96545,2085.7,2085.5,6.16343663]
[1617463633850,36.96545,2085.7,2085.5,6.16343663]
[1617463635055,36.96545,2085.7,2085.4,6.16356713]
[1617463635454,36.96545,2085.7,2085.5,6.16356387]
[1617463635954,36.96545,2085.7,2085.4,6.16379877]
[1617463636154,36.96545,2085.7,2085.2,6.156751]
[1617463637356,2.90695,2085.3,2085.2,6.156751]
[1617463637557,32.90695,2085.3,2085.0,7.28665096]
[1617463637958,32.90695,2085.3,2085.1,0.16044269]
[1617463640659,32.90695,2085.3,2085.0,7.28665096]
[1617463640858,32.90695,2085.3,2084.4,2.90695]
[1617463640859,32.90695,2085.3,2084.8,7.28713027]
[1617463641160,32.90695,2085.3,2084.9,7.28685475]
[1617463641459,2.90695,2085.0,2084.9,0.16040807]
[1617463641660,2.90695,2085.0,2084.6,8.4077243]
[1617463641860,2.90695,2085.0,2084.7,0.16040491]
[1617463642665,2.90695,2085.0,2084.7,8.56762119]
[1617463642965,2.90695,2085.0,2084.8,0.16039543]
[1617463643465,2.90695,2085.0,2084.9,2.90695]
[1617463643964,2.90695,2085.0,2084.9,0.16039935]
[1617463644365,2.90695,2085.0,2084.8,0.16039885]
[1617463644564,2.90695,2085.0,2084.9,0.16040299]
[1617463644965,2.90695,2085.0,2084.8,0.16039809]
[1617463645465,2.90695,2085.0,2084.6,8.40769917]
[1617463645466,2.90695,2085.0,2084.7,0.16040803]
[1617463645665,2.90695,2085.0,2084.9,0.16040793]
[1617463645866,2.90695,2085.0,2084.8,0.16042159]
[1617463646067,2.90695,2085.0,2084.9,7.28700495]
[1617463646567,2.90695,2085.0,2084.9,7.44742429]
[1617463646869,2.90695,2085.0,2084.9,0.16041934]
[1617463647167,2.90695,2085.0,2084.9,7.4416558]
[1617463647968,2.90695,2085.0,2084.9,0.16041934]
[1617463648670,2.90695,2085.0,2084.8,0.16034753]
[1617463649272,2.90695,2085.0,2084.8,7.44152922]
[1617463649873,2.90695,2085.0,2084.9,0.16035422]
[1617463655478,2.90695,2085.0,2084.8,7.44109174]
[1617463655678,4.96755,2085.0,2084.8,7.44109174]
[1617463655878,4.96755,2085.0,2084.9,0.15980423]
[1617463656679,4.96755,2085.0,2084.8,7.28116278]
[1617463656880,4.96755,2085.0,2084.7,7.28120136]
[1617463657181,4.96755,2085.0,2084.8,7.28108975]
[1617463657382,4.96755,2085.0,2084.8,7.44070667]
[1617463657784,4.96755,2085.0,2084.9,0.15946929]
[1617463659387,4.96755,2085.0,2084.9,6.158787]
[1617463660988,4.96755,2085.0,2084.5,7.27856645]
[1617463661388,4.96755,2085.0,2084.9,6.15878347]
[1617463661788,4.96755,2085.0,2084.9,0.15978634]
[1617463662189,4.96755,2085.0,2084.7,7.43785206]
[1617463662489,4.96755,2085.0,2084.9,0.15995851]
[1617463662890,4.96755,2085.0,2084.8,0.15997037]
[1617463663092,4.96755,2085.0,2084.9,0.1603183]
[1617463663591,4.96755,2085.0,2084.7,7.43842689]
[1617463663790,4.96755,2085.0,2084.9,0.16029252]
[1617463664091,4.96755,2085.0,2084.8,0.16027995]
[1617463665892,4.96755,2085.0,2084.7,0.16065963]
[1617463666097,4.96755,2085.0,2084.9,0.16064304]
[1617463666694,4.96755,2085.0,2084.7,0.16066074]
[1617463666994,4.96755,2085.0,2084.5,7.27856844]
[1617463666995,4.96755,2085.0,2084.9,6.3193843]
[1617463667394,4.96755,2085.0,2084.9,6.15878988]
[1617463667594,4.96755,2085.0,2084.9,6.31933358]
[1617463670300,4.96755,2085.0,2084.9,0.1605437]
[1617463671199,4.96755,2085.0,2084.9,6.31809425]
[1617463671899,4.96755,2085.0,2084.9,0.1605437]
[1617463678308,4.96755,2085.0,2084.9,6.31834932]
[1617463678608,4.96755,2085.0,2084.9,0.1605437]
[1617463680109,4.96755,2085.0,2084.9,5.1990609]
[1617463680510,4.96755,2085.0,2084.9,0.1605437]
[1617463680711,2.90695,2085.0,2084.9,0.1605437]
[1617463682415,2.90695,2085.0,2084.7,7.44091246]
[1617463682815,2.90695,2085.0,2084.8,0.16083148]
[1617463683117,2.90695,2085.0,2084.8,2.16693148]
[1617463683616,2.90695,2085.0,2084.9,10.34726497]
[1617463683817,2.571,2085.6,2084.9,10.34726497]
[1617463684016,2.571,2085.6,2084.9,3.06784942]
[1617463684416,2.571,2085.6,2085.4,6.15912027]
[1617463684616,2.571,2085.6,2085.4,8.02892027]
[1617463684916,2.571,2085.6,2085.5,6.31947606]
[1617463685416,2.571,2085.6,2085.5,0.16083241]
[1617463685617,5.47795,2085.6,2085.5,3.06778241]
[1617463687218,5.47795,2085.6,2085.5,0.16083241]
[1617463687617,5.47795,2085.6,2085.5,3.06778241]
[1617463688416,5.47795,2085.6,2085.5,0.16083241]
[1617463688817,5.47795,2085.6,2085.3,0.16107513]
[1617463689718,5.47795,2085.6,2085.4,2.90695]
[1617463690119,5.47795,2085.6,2085.5,0.16108361]
[1617463692522,2.90695,2085.6,2085.5,0.16108361]
[1617463692824,2.90695,2085.6,2085.5,7.4414628]
[1617463693223,2.90695,2085.6,2085.5,0.16108361]
[1617463693722,2.90695,2085.6,2085.5,2.90695]
[1617463694125,2.90695,2085.6,2085.5,3.06775158]
[1617463696827,2.90695,2085.6,2085.5,0.16080158]
[1617463697427,2.90695,2085.6,2085.3,0.16074499]
[1617463697726,2.90695,2085.6,2085.5,0.16074772]
[1617463698127,2.90695,2085.6,2085.4,0.16075266]
[1617463698328,2.90695,2085.6,2085.5,0.16075882]
[1617463698628,2.90695,2085.6,2085.5,7.45232121]
[1617463698827,2.90695,2085.6,2085.5,7.29156239]
[1617463699129,2.90695,2085.6,2085.5,0.16074935]
[1617463699730,5.098,2086.1,2085.4,2.90695]
[1617463699928,5.098,2086.1,2085.5,0.16074699]
[1617463700328,5.098,2086.1,2086.0,6.16954997]
[1617463700929,5.098,2086.1,2085.6,7.29128633]
[1617463701430,5.098,2086.1,2085.7,0.16077313]
[1617463701929,2.90695,2085.8,2085.7,0.16077313]
[1617463705238,2.90695,2085.8,2085.6,7.29128633]
[1617463708041,2.90695,2085.8,2085.6,10.19823633]
[1617463708742,2.90695,2085.8,2085.7,7.45400479]
[1617463709242,2.90695,2085.8,2085.7,7.293817]
[1617463709544,2.90695,2085.8,2085.6,7.29395782]
[1617463709743,2.90695,2085.8,2085.5,7.29404174]
[1617463714449,2.90695,2085.8,2085.4,7.29486321]
[1617463715851,2.90695,2085.8,2085.7,6.1726652]
[1617463716049,5.098,2086.1,2085.7,6.1726652]
[1617463716250,5.098,2086.1,2085.4,7.29494414]
[1617463716550,6.9908,2086.1,2085.4,7.29494414]
[1617463716750,6.9908,2086.1,2086.0,5.05055758]
[1617463717251,6.9908,2086.1,2085.8,5.05061944]
[1617463717754,7.9457,2086.1,2085.8,5.05061944]
[1617463717952,2.90695,2085.9,2085.8,5.05061944]
[1617463718551,2.90695,2085.9,2085.6,6.17297932]
[1617463718552,2.90695,2085.9,2085.6,5.05090569]
[1617463718951,30.0,2085.8,2085.6,5.05090569]
[1617463719251,32.0,2085.8,2085.6,5.05090569]
[1617463719653,32.0,2085.8,2085.6,1.69840569]
[1617463720254,32.0,2085.8,2084.5,8.41854175]
[1617463720255,32.0,2085.8,2085.3,6.17360932]
[1617463720654,32.0,2085.8,2085.3,4.72600932]
[1617463720855,32.0,2085.8,2084.5,7.29704125]
[1617463721055,76.2953,2085.4,2084.5,7.29704125]
[1617463721255,32.0,2085.3,2084.4,7.297397]
[1617463722054,2.90695,2084.5,2084.4,7.297397]
[1617463722256,5.23525,2084.5,2084.4,7.297397]
[1617463722453,5.23525,2084.5,2084.4,7.4581367]
[1617463724357,5.23525,2084.5,2084.4,0.1607397]
[1617463724758,5.23525,2084.5,2084.2,0.16073014]
[1617463725859,5.23525,2084.5,2084.4,7.29233572]
[1617463726059,5.23525,2084.5,2084.3,7.45093862]
[1617463726460,5.23525,2084.5,2083.9,11.31889184]
[1617463726461,5.23525,2084.5,2084.4,0.16059933]
[1617463726660,5.23525,2084.5,2084.2,7.29054532]
[1617463727160,5.23525,2084.5,2084.3,0.16059896]
[1617463729564,2.90695,2084.5,2084.3,0.16059896]
[1617463729768,2.90695,2084.5,2084.3,2.2533]
[1617463729965,2.90695,2084.5,2084.4,2.90695]
[1617463730166,76.2953,2085.4,2084.4,3.06735]
[1617463730667,76.2953,2085.4,2085.2,5.04650343]
[1617463731168,76.2953,2085.4,2085.3,5.04617894]
[1617463731668,76.2953,2085.4,2085.2,5.04659837]
[1617463732168,2.90695,2085.3,2085.2,5.04659837]
[1617463732768,2.90695,2085.3,2085.1,5.04662933]
[1617463733068,2.90695,2085.3,2085.2,5.04656555]
[1617463736775,32.90695,2085.3,2085.2,5.04656555]
[1617463737076,32.90695,2085.3,2085.1,5.04462106]
[1617463737276,32.90695,2085.3,2085.0,5.04484399]
[1617463738680,32.90695,2085.3,2084.9,5.04460325]
[1617463739080,32.90695,2085.3,2085.0,5.04463802]
[1617463740580,32.90695,2085.3,2084.9,5.04469975]
[1617463741682,32.90695,2085.3,2085.0,5.04453637]
[1617463743085,32.90695,2085.3,2085.1,5.04430258]
[1617463743284,2.90695,2085.3,2085.1,5.04430258]
[1617463743686,2.90695,2085.3,2085.2,5.04415728]
[1617463744389,2.90695,2085.3,2085.1,5.04427285]
[1617463744589,32.90695,2085.3,2085.1,5.04427285]
[1617463744790,32.90695,2085.3,2082.7,2.1536]
[1617463744791,35.15515,2085.3,2085.0,5.04464057]
[1617463745094,35.15515,2085.3,2084.8,6.16567181]
[1617463745095,35.15515,2085.3,2084.8,5.04483871]
[1617463745291,37.15515,2085.3,2084.8,5.04483871]
[1617463746092,2.90695,2084.9,2084.8,5.04483871]
[1617463747695,2.90695,2084.9,2084.7,5.04499766]
[1617463747995,2.90695,2084.9,2084.8,5.04500747]
[1617463748396,2.90695,2084.9,2084.7,5.04289827]
[1617463749497,33.87545,2084.9,2084.6,5.04301646]
[1617463749898,2.0,2084.8,2084.4,5.04329972]
[1617463750096,30.0,2084.7,2084.4,5.04329972]
[1617463750397,2.0,2084.6,2083.7,7.11123779]
[1617463750598,30.0,2084.5,2083.7,6.15823779]
[1617463750799,30.0,2084.5,2083.5,6.15858784]
[1617463750800,2.0,2084.4,2083.5,6.15858784]
[1617463751004,30.0,2084.3,2083.5,6.15858784]
[1617463751200,34.4202,2084.3,2083.4,6.15888]
[1617463751600,34.4202,2084.3,2082.4,0.9722]
[1617463751601,34.4202,2084.3,2083.2,6.15939949]
[1617463752000,34.4202,2084.3,2083.1,6.15979157]
[1617463752202,2.90695,2083.2,2083.1,6.15979157]
[1617463752401,4.45555,2083.2,2082.8,6.16026682]
[1617463752803,4.45555,2083.2,2082.6,6.16032948]
[1617463753002,65.03405,2083.2,2082.7,6.16042261]
[1617463754205,2.90695,2082.8,2082.7,6.16042261]
[1617463754804,2.90695,2082.8,2082.6,6.16047991]
[1617463755306,32.90695,2082.8,2082.2,7.28055507]
[1617463755505,32.90695,2082.8,2081.6,7.28239417]
[1617463755907,32.90695,2082.8,2080.1,2.0]
[1617463755908,32.90695,2082.8,2081.4,7.28282581]
[1617463756107,2.90695,2081.5,2081.4,7.28282581]
[1617463756307,2.3849,2081.9,2081.4,7.28282581]
[1617463756509,2.3849,2081.9,2081.5,0.16045243]
[1617463757107,2.3849,2081.9,2081.5,7.44286504]
[1617463757307,30.0,2083.1,2081.5,7.28241261]
[1617463757507,60.5785,2083.2,2081.5,9.28241261]
[1617463757707,60.5785,2083.2,2081.6,0.16039455]
[1617463758112,60.5785,2083.2,2082.6,2.90695]
[1617463758410,60.5785,2083.2,2082.6,4.59335]
[1617463759209,60.5785,2083.2,2082.6,1.6864]
[1617463759409,60.5785,2083.2,2082.3,7.28021124]
[1617463759610,2.349,2083.7,2082.2,7.28043959]
[1617463759811,30.0,2083.6,2082.2,7.28043959]
[1617463760111,30.0,2083.6,2082.6,5.03814588]